fUST/lending_fUST_20251003
["ID","MTS","AMOUNT","RATE_DAILY","PERIOD"]
[388881691,1759461272400,-1005.71,0.00018046,2]
[388881692,1759461272409,-518.31,0.00018046,2]
[388881693,1759461272419,-319.2343431,0.00018046,2]
[388881694,1759461272429,-164.57074567,0.00018046,2]
[388881695,1759461272439,-2006.53,0.00018046,2]
[388881696,1759461272448,-500.0,0.00018046,2]
[388881697,1759461272458,-264.34614803,0.00018046,2]
[388881698,1759461272467,-1000.0,0.00018046,2]
[388881699,1759461272477,-500.0,0.00018046,2]
[388881700,1759461272487,-418.27961372,0.00018046,2]
[388881701,1759461272725,-1190.23038628,0.00018046,2]
[388881702,1759461272734,-8809.77961372,0.00018046,2]
[388881703,1759461272911,-10000.01,0.00018046,2]
[388881704,1759461272936,-3550.01162658,0.00018046,2]
[388881705,1759461272945,-500.0,0.00018046,2]
[388881706,1759461272954,-424.81823772,0.00018053,2]
[388881707,1759461272963,-536.91,0.00018053,2]
[388881708,1759461272972,-500.0,0.00018053,2]
[388881709,1759461272981,-500.0,0.00018053,2]
[388881710,1759461272991,-500.0,0.00018054,2]
[388881711,1759461273001,-500.0,0.00018054,2]
[388881712,1759461273010,-500.0,0.00018054,2]
[388881713,1759461273020,-1741.0706389,0.00018054,2]
[388881714,1759461273030,-747.1994968,0.00018054,2]
[388881715,1759461273052,-491.5601039,0.00018054,2]
[388881716,1759461273061,-153.090065,0.00018054,2]
[388881717,1759461273070,-500.0,0.00018054,2]
[388881718,1759461273079,-500.0,0.00018054,2]
[388881719,1759461273089,-762.77,0.00018054,2]
[388881720,1759461273099,-935.26,0.00018054,2]
[388881721,1759461273108,-958.68,0.00018054,2]
[388881722,1759461273118,-500.0,0.00018054,2]
[388881723,1759461273128,-687.49,0.00018054,2]
[388881724,1759461273146,-500.0,0.00018054,2]
[388881725,1759461273155,-787.1,0.00018054,2]
[388881726,1759461273164,-500.0,0.00018054,2]
[388881727,1759461273173,-835.27,0.00018054,2]
[388881728,1759461273183,-706.37,0.00018054,2]
[388881729,1759461273192,-500.0,0.00018054,2]
[388881730,1759461273201,-682.4198311,0.00018054,2]
[388881731,1759461273214,-74.9701689,0.00018054,2]
[388881732,1759461273224,-500.0,0.00018054,2]
[388881733,1759461273233,-547.98,0.00018054,2]
[388881734,1759461273242,-500.0,0.00018054,2]
[388881735,1759461273252,-500.0,0.00018054,2]
[388881736,1759461273261,-226.129762,0.00018054,2]
[388881737,1759461273271,-226.129762,0.00018054,2]
[388881738,1759461273280,-226.129762,0.00018054,2]
[388881739,1759461273290,-226.129762,0.00018054,2]
[388881740,1759461273299,-609.67,0.00018054,2]
[388881741,1759461273308,-882.28,0.00018054,2]
[388881742,1759461273317,-958.41,0.00018054,2]
[388881743,1759461273327,-151.0,0.00018054,2]
[388881744,1759461273335,-500.0,0.00018054,2]
[388881745,1759461273344,-631.68,0.00018054,2]
[388881746,1759461273352,-500.0,0.00018054,2]
[388881747,1759461273362,-500.0,0.00018054,2]
[388881748,1759461273372,-500.0,0.00018054,2]
[388881749,1759461273381,-715.34,0.00018054,2]
[388881750,1759461273391,-255.04086137,0.00018054,2]
[388881751,1759461273399,-769.11992173,0.00018054,2]
[388881752,1759461273528,-500.0,0.00018043,2]
[388881753,1759461273557,-1025.03007827,0.00018054,2]
[388881754,1759461273586,-629.05,0.00018054,2]
[388881755,1759461273613,-500.0,0.00018054,2]
[388881756,1759461273640,-500.0,0.00018054,2]
[388881757,1759461273667,-500.0,0.00018054,2]
[388881758,1759461273695,-500.0,0.00018054,2]
[388881759,1759461273721,-500.0,0.00018054,2]
[388881760,1759461273748,-191.84984346,0.00018054,2]
[388881761,1759461273870,-308.15015654,0.00018054,2]
[388881762,1759461277542,-940.62,0.00018045,2]
[388881763,1759461277571,-730.99,0.00018046,2]
[388881764,1759461277597,-500.0,0.00018054,2]
[388881765,1759461277622,-500.0,0.00018054,2]
[388881766,1759461277646,-500.0,0.00018054,2]
[388881767,1759461277672,-500.0,0.00018054,2]
[388881768,1759461277698,-485.4260871,0.00018055,2]
[388881769,1759461277724,-500.0,0.00018055,2]
[388881770,1759461277751,-219.06848486,0.00018055,2]
[388881771,1759461277848,-247.80085608,0.00018055,2]
[388881772,1759461277875,-500.0,0.00018055,2]
[388881773,1759461277901,-500.0,0.00018055,2]
[388881774,1759461277928,-500.0,0.00018055,2]
[388881775,1759461277955,-500.0,0.00018055,2]
[388881776,1759461277982,-500.0,0.00018055,2]
[388881777,1759461278015,-642.5,0.00018055,2]
[388881778,1759461278233,-500.0,0.00018055,2]
[388881779,1759461278264,-500.0,0.00018055,2]
[388881780,1759461278290,-500.0,0.00018055,2]
[388881781,1759461278393,-500.0,0.00018055,2]
[388881782,1759461278420,-500.0,0.00018055,2]
[388881783,1759461278446,-495.29129004,0.00018055,2]
[388881784,1759461278472,-500.0,0.00018055,2]
[388881785,1759461278501,-245.33023392,0.00018055,2]
[388881786,1759461278532,-1140.52,0.00018055,2]
[388881787,1759461278560,-790.94,0.00018055,2]
[388881788,1759461278589,-500.0,0.00018055,2]
[388881789,1759461278620,-155.84695208,0.00018055,2]
[388881790,1759461278672,-344.15304792,0.00018055,2]
[388881791,1759461278700,-985.79,0.00018055,2]
[388881792,1759461278726,-500.0,0.00018055,2]
[388881793,1759461278753,-500.0,0.00018055,2]
[388881794,1759461278780,-984.66,0.00018055,2]
[388881795,1759461278807,-274.93506658,0.00018055,2]
[388881796,1759461278835,-500.0,0.00018055,2]
[388881797,1759461278862,-500.0,0.00018055,2]
[388881798,1759461278890,-320.933771,0.00018055,2]
[388881799,1759461279007,-179.066229,0.00018055,2]
[388881800,1759461279036,-500.0,0.00018055,2]
[388881801,1759461279065,-500.0,0.00018055,2]
[388881802,1759461279093,-500.0,0.00018055,2]
[388881803,1759461279122,-1254.6,0.00018055,2]
[388881804,1759461279150,-500.0,0.00018055,2]
[388881805,1759461279177,-293.4940146,0.00018055,2]
[388881806,1759461279207,-500.0,0.00018055,2]
[388881807,1759461279235,-500.0,0.00018055,2]
[388881808,1759461279263,-45.6895128,0.00018055,2]
[388881809,1759461279329,-454.3104872,0.00018055,2]
[388881810,1759461279358,-500.0,0.00018055,2]
[388881811,1759461279386,-500.0,0.00018055,2]
[388881812,1759461279412,-500.0,0.00018055,2]
[388881813,1759461279440,-500.0,0.00018055,2]
[388881814,1759461279467,-500.0,0.00018055,2]
[388881815,1759461279493,-500.0,0.00018055,2]
[388881816,1759461279518,-500.44,0.00018055,2]
[388881817,1759461279551,-500.0,0.00018055,2]
[388881818,1759461279581,-500.0,0.00018055,2]
[388881819,1759461279708,-500.0,0.00018055,2]
[388881820,1759461279737,-500.0,0.00018055,2]
[388881821,1759461279765,-570.7,0.00018055,2]
[388881822,1759461279793,-500.0,0.00018055,2]
[388881823,1759461279820,-500.0,0.00018055,2]
[388881824,1759461279847,-500.0,0.00018055,2]
[388881825,1759461279875,-500.0,0.00018055,2]
[388881826,1759461279902,-500.0,0.00018055,2]
[388881827,1759461279930,-591.23,0.00018055,2]
[388881828,1759461279958,-176.15,0.00018055,2]
[388881829,1759461280072,-323.85,0.00018055,2]
[388881830,1759461280100,-588.9226978,0.00018055,2]
[388881831,1759461280128,-769.38,0.00018055,2]
[388881832,1759461280155,-702.28,0.00018055,2]
[388881833,1759461280182,-500.0,0.00018055,2]
[388881834,1759461280209,-647.79,0.00018055,2]
[388881835,1759461280235,-500.0,0.00018055,2]
[388881836,1759461280263,-500.0,0.00018055,2]
[388881837,1759461280291,-435.5646044,0.00018055,2]
[388881838,1759461281869,-500.0,0.00018045,2]
[388881839,1759461281878,-50.75041628,0.00018046,2]
[388881840,1759461281891,-500.0,0.00018046,2]
[388881841,1759461281904,-21.36373338,0.00018046,2]
[388881842,1759461281914,-64.4353956,0.00018055,2]
[388881843,1759461281922,-414.20087102,0.00018055,2]
[388881844,1759461281936,-383.81912898,0.00018055,2]
[388881845,1759461281945,-116.18087102,0.00018055,2]
[388881846,1759461289697,-500.0,0.00018044,2]
[388881847,1759461289724,-500.0,0.00018045,2]
[388881848,1759461289752,-1376.76,0.00018045,2]
[388881849,1759461289779,-500.0,0.00018045,2]
[388881850,1759461289807,-662.79,0.00018045,2]
[388881851,1759461289834,-500.0,0.00018046,2]
[388881852,1759461289862,-383.81912898,0.00018055,2]
[388881853,1759461289889,-500.0,0.00018055,2]
[388881854,1759461290072,-153.27174204,0.00018055,2]
[388881855,1759461291394,1000.0,0.0001801,5]
[388881856,1759461307996,-500.0,0.00018043,2]
[388881857,1759461308027,-3161.36,0.00018043,2]
[388881858,1759461308058,-502.1067587,0.00018044,2]
[388881859,1759461308085,-473.0764826,0.00018044,2]
[388881860,1759461308180,-726.9235174,0.00018044,2]
[388881861,1759461308247,-500.0,0.00018045,2]
[388881862,1759461308276,-500.0,0.00018045,2]
[388881863,1759461308306,-313.19364627,0.00018045,2]
[388881864,1759461308333,-644.88,0.00018045,2]
[388881865,1759461308360,-500.0,0.00018045,2]
[388881866,1759461308387,-500.0,0.00018045,2]
[388881867,1759461308415,-496.82669147,0.00018045,2]
[388881868,1759461308444,-500.0,0.00018046,2]
[388881869,1759461308472,-500.0,0.00018046,2]
[388881870,1759461308639,-2054.69,0.00018054,2]
[388881871,1759461308668,-500.0,0.00018054,2]
[388881872,1759461308697,-346.72825796,0.00018055,2]
[388881873,1759461308725,-500.0,0.00018055,2]
[388881874,1759461308753,-771.75,0.00018055,2]
[388881875,1759461308781,-500.0,0.00018055,2]
[388881876,1759461308811,-153.67348408,0.00018055,2]
[388881877,1759461309146,-346.32651592,0.00018055,2]
[388881878,1759461309156,-90.20932452,0.00018055,2]
[388881879,1759461309229,-99.3696632,0.00018055,2]
[388881880,1759461309239,-400.6303368,0.00018055,2]
[388881881,1759461309254,-99.3696632,0.00018055,2]
[388881882,1759461309264,-400.6303368,0.00018055,2]
[388881883,1759461309964,-500.0,0.00018045,2]
[388881884,1759461309990,-99.3696632,0.00018055,2]
[388881885,1759461310017,-500.0,0.00018055,2]
[388881886,1759461310048,-452.97674291,0.00018055,2]
[388881887,1759461310076,-500.0,0.00018055,2]
[388881888,1759461310103,-664.56,0.00018055,2]
[388881889,1759461310130,-500.0,0.00018055,2]
[388881890,1759461310157,-458.82900683,0.00018055,2]
[388881891,1759461310183,-500.0,0.00018055,2]
[388881892,1759461310211,-500.0,0.00018055,2]
[388881893,1759461310446,-128.53917412,0.00018056,3]
[388881894,1759461310628,-391.46082588,0.00018056,3]
[388881895,1759461313997,-500.0,0.00018043,2]
[388881896,1759461314026,-2863.69,0.00018045,2]
[388881897,1759461314055,-500.0,0.00018054,2]
[388881898,1759461314083,-635.6284097,0.00018056,2]
[388881899,1759461314109,-453.7031806,0.00018056,2]
[388881900,1759461314190,-93.9668194,0.00018056,2]
[388881901,1759461314220,-628.67,0.00018056,2]
[388881902,1759461314248,-500.0,0.00018056,2]
[388881903,1759461314275,-500.0,0.00018056,2]
[388881904,1759461314304,-500.0,0.00018056,2]
[388881905,1759461314330,-633.95,0.00018056,2]
[388881906,1759461314356,-500.0,0.00018056,2]
[388881907,1759461314382,-500.0,0.00018056,2]
[388881908,1759461314409,-500.0,0.00018056,2]
[388881909,1759461314436,-500.59,0.00018056,2]
[388881910,1759461314607,-473.59,0.00018056,2]
[388881911,1759461316358,-754.46,0.00018045,2]
[388881912,1759461316386,-734.69479998,0.00018045,2]
[388881913,1759461318521,500.0,0.00018045,2]
[388881914,1759461318567,500.0,0.00018045,2]
[388881915,1759461318605,227.19719887,0.00018045,2]
[388881916,1759461318735,500.0,0.00018044,2]
[388881917,1759461319237,500.0,0.00018045,2]
[388881918,1759461319265,500.0,0.00018045,2]
[388881919,1759461319292,500.0,0.00018045,2]
[388881920,1759461319318,500.0,0.00018045,2]
[388881921,1759461319346,500.0,0.00018045,2]
[388881922,1759461319377,500.0,0.00018045,2]
[388881923,1759461319404,500.0,0.00018045,2]
[388881924,1759461319430,500.0,0.00018045,2]
[388881925,1759461319457,260.5209391,0.00018045,2]
[388881926,1759461319484,500.0,0.00018045,2]
[388881927,1759461319512,253.32322302,0.00018045,2]
[388881928,1759461319541,280.65903905,0.00018045,2]
[388881929,1759461319563,328.35580991,0.00018045,2]
[388881930,1759461319593,500.0,0.00018045,2]
[388881931,1759461319624,267.37965078,0.00018045,2]
[388881932,1759461319652,505.12011844,0.00018045,2]
[388881933,1759461319690,500.0,0.00018045,2]
[388881934,1759461320436,502.96079391,0.00018043,2]
[388881935,1759461322145,7396.19362696,0.00018045,2]
[388881936,1759461322166,750.48637304,0.00018045,2]
[388881937,1759461322584,2004.75,0.00018043,2]
[388881938,1759461322801,500.0,0.00018045,2]
[388881939,1759461326850,925.17,0.00018044,2]
[388881940,1759461328083,166.0,0.00018044,2]
[388881941,1759461328595,500.0,0.00018045,2]
[388881942,1759461330023,500.0,0.00018044,2]
[388881943,1759461331108,502.66,0.00018045,2]
[388881944,1759461331634,500.0,0.00018045,2]
[388881945,1759461332075,-981.2,0.00018046,2]
[388881946,1759461332102,-896.29,0.00018046,2]
[388881947,1759461332128,-500.0,0.00018046,2]
[388881948,1759461332155,-918.74,0.00018046,2]
[388881949,1759461332181,-1093.0,0.00018046,2]
[388881950,1759461332858,1221.55,0.00018045,2]
[388881951,1759461332878,3371.31,0.00018045,2]
[388881953,1759461336172,1013.33,0.00018043,2]
[388881954,1759461337121,500.0,0.00018045,2]
[388881955,1759461340672,1238.04,0.00018043,2]
[388881956,1759461342579,1527.74,0.00018045,2]
[388881957,1759461343079,165.04515382,0.00017946,2]
[388881958,1759461346092,564.16,0.00018045,2]
[388881959,1759461349419,500.0,0.00018045,2]
[388881960,1759461350266,-500.0,0.00018043,2]
[388881961,1759461350446,-5546.8880731,0.00018052,2]
[388881962,1759461352351,151.66,0.000179,2]
[388881963,1759461354559,-500.0,0.00018043,2]
[388881964,1759461354588,-4485.71,0.00018045,2]
[388881965,1759461354626,-28.59,0.00018045,2]
[388881966,1759461355101,-1561.68,0.00018045,2]
[388881967,1759461355128,-500.0,0.00018046,2]
[388881968,1759461355274,-5876.65,0.00018052,2]
[388881969,1759461356579,-500.0,0.00018043,2]
[388881970,1759461356610,-1382.9,0.00018046,2]
[388881971,1759461356642,-173.1877858,0.00018052,2]
[388881972,1759461356699,-5887.8344284,0.00018052,2]
[388881978,1759461360484,-549.69,0.00018054,2]
[388881979,1759461360511,-632.24,0.00018054,2]
[388881980,1759461360541,-372.6200186,0.00018054,2]
[388881981,1759461360568,-500.0,0.00018054,2]
[388881982,1759461362158,500.0,0.00018045,2]
[388881983,1759461363647,658.85,0.00018046,2]
[388881984,1759461363775,4732.0599628,0.00018054,2]
[388881985,1759461363799,267.9400372,0.00018054,2]
[388881986,1759461363996,536.74,0.00018045,2]
[388881987,1759461365337,969.98,0.00018044,2]
[388881988,1759461366156,1621.48,0.00018043,2]
[388881989,1759461366623,500.0,0.00018045,2]
[388881990,1759461367805,510.18,0.00018046,2]
[388881991,1759461368814,500.0,0.00018043,2]
[388881992,1759461371372,660.75,0.00018045,2]
[388881993,1759461371508,500.0,0.00018045,2]
[388881994,1759461374115,500.0,0.00018054,2]
[388881995,1759461375033,953.86,0.00018043,2]
[388881996,1759461375701,990.92,0.00018045,2]
[388881997,1759461376660,500.0,0.00018044,2]
[388881998,1759461377738,1073.9,0.00018043,2]
[388881999,1759461378104,500.0,0.00018045,2]
[388882000,1759461379708,10000.01,0.00017954,2]
[388882001,1759461379731,10000.01,0.00017954,2]
[388882002,1759461379760,87787.92066931,0.00017954,2]
[388882003,1759461382482,-500.0,0.00018045,2]
[388882004,1759461383067,549.69,0.00018054,2]
[388882005,1759461384808,500.0,0.00018045,2]
[388882006,1759461385207,1077.03,0.00018045,2]
[388882007,1759461387219,500.0,0.00018045,2]
[388882008,1759461387893,869.15,0.00018045,2]
[388882009,1759461388236,2268.7689092,0.0001805,2]
[388882010,1759461398631,4862.0,0.00017796,2]
[388882011,1759461400957,325.67793583,0.00017174,2]
[388882012,1759461402579,1301.40903157,0.00017174,2]
[388882013,1759461404856,-1799.27,0.00018043,2]
[388882014,1759461404889,-500.0,0.00018045,2]
[388882015,1759461404918,-1133.1,0.00018045,2]
[388882016,1759461404947,-1385.24,0.00018045,2]
[388882017,1759461408722,-787.92,0.00018043,2]
[388882018,1759461408748,-500.0,0.00018044,2]
[388882019,1759461408775,-1989.6,0.00018045,2]
[388882020,1759461408802,-798.92,0.00018045,2]
[388882021,1759461408828,-500.0,0.00018045,2]
[388882022,1759461408854,-89.15,0.00018046,2]
[388882023,1759461412789,-500.0,0.00018045,2]
[388882024,1759461412817,-668.83,0.00018046,2]
[388882025,1759461412843,-500.0,0.00018046,2]
[388882026,1759461412870,-500.0,0.00018046,2]
[388882027,1759461412895,-500.0,0.00018046,2]
[388882028,1759461412921,-636.29,0.00018054,2]
[388882029,1759461412949,-279.46501395,0.00018054,2]
[388882030,1759461412977,-300.0,0.00018055,2]
[388882031,1759461413003,-26.41,0.00018056,2]
[388882032,1759461413028,-226.129762,0.00018056,2]
[388882033,1759461413056,-226.129762,0.00018056,2]
[388882034,1759461413083,-226.129762,0.00018056,2]
[388882035,1759461413109,-226.129762,0.00018056,2]
[388882036,1759461413139,-151.0,0.00018056,2]
[388882037,1759461414992,-500.0,0.00018045,2]
[388882038,1759461415579,901.43,0.00018045,2]
[388882039,1759461416890,500.0,0.00018043,2]
[388882040,1759461417096,600.35,0.00018045,2]
[388882041,1759461417924,500.0,0.00018045,2]
[388882042,1759461421723,2552.4,0.00018045,2]
[388882043,1759461422862,500.0,0.00018045,2]
[388882044,1759461426397,500.0,0.00018043,2]
[388882045,1759461427482,500.0,0.00018045,2]
[388882046,1759461429251,500.0,0.00018045,2]
[388882047,1759461429967,-1004.2954986,0.00018056,2]
[388882048,1759461431787,930.07,0.00018045,2]
[388882049,1759461432484,772.51,0.00018045,2]
[388882050,1759461432529,500.0,0.00018044,2]
[388882051,1759461433390,500.0,0.00018045,2]
[388882052,1759461433450,2795.26,0.00018043,2]
[388882053,1759461433826,556.38,0.00018045,2]
[388882054,1759461434422,944.72,0.00018046,2]
[388882055,1759461437770,500.0,0.00018045,2]
[388882056,1759461438095,-346.697,0.00018075,2]
[388882057,1759461438780,577.32643265,0.00018045,2]
[388882058,1759461440406,754.31,0.00018046,2]
[388882059,1759461440884,500.0,0.00018046,2]
[388882060,1759461442698,500.0,0.00018044,2]
[388882061,1759461442791,500.0,0.00018045,2]
[388882062,1759461443304,500.0,0.00018046,2]
[388882063,1759461444046,589.18,0.00018044,2]
[388882064,1759461445335,500.0,0.00018045,2]
[388882065,1759461448647,1762.6,0.00018045,2]
[388882066,1759461448804,500.0,0.00018045,2]
[388882067,1759461448973,500.0,0.00018046,2]
[388882068,1759461452333,1011.98,0.00018043,2]
[388882069,1759461452435,800.47,0.00018046,2]
[388882070,1759461453064,310.74956735,0.00018044,2]
[388882071,1759461453086,240.65043265,0.00018044,2]
[388882072,1759461454505,260.50818315,0.00018045,2]
[388882073,1759461454920,1049.47,0.00018043,2]
[388882074,1759461456888,500.0,0.00018045,2]
[388882075,1759461457543,267.44152562,0.00018046,2]
[388882076,1759461458793,500.0,0.00018045,2]
[388882077,1759461459973,500.0,0.00018046,2]
[388882078,1759461460569,676.93,0.00018046,2]
[388882079,1759461462330,500.0,0.00018045,2]
[388882080,1759461462732,4462.97,0.00018045,2]
[388882081,1759461463118,500.0,0.00018045,2]
[388882082,1759461464150,500.0,0.00018044,2]
[388882083,1759461464249,500.0,0.00018045,2]
[388882084,1759461464590,1123.85,0.00018043,2]
[388882085,1759461466234,500.0,0.00018045,2]
[388882086,1759461467466,500.0,0.00018045,2]
[388882087,1759461468346,943.64,0.00018045,2]
[388882088,1759461469143,469.55,0.00018045,2]
[388882089,1759461469166,1530.45,0.00018045,2]
[388882090,1759461469415,1856.305,0.00018045,2]
[388882091,1759461469839,500.0,0.00018046,2]
[388882092,1759461471613,500.0,0.00018045,2]
[388882093,1759461472741,666.32,0.00018045,2]
[388882094,1759461472993,2794.84,0.00018043,2]
[388882095,1759461473411,762.71,0.00018045,2]
[388882096,1759461476087,1389.385,0.00018045,2]
[388882097,1759461476109,1786.105,0.00018045,2]
[388882098,1759461476483,500.0,0.00018045,2]
[388882099,1759461478698,500.0,0.00018054,2]
[388882100,1759461481581,500.0,0.00018044,2]
[388882101,1759461482748,555.91925168,0.00018045,2]
[388882102,1759461483680,1560.08,0.00018045,2]
[388882103,1759461484791,500.0,0.00018045,2]
[388882104,1759461487256,500.0,0.00018045,2]
[388882105,1759461489677,521.25,0.00018045,2]
[388882106,1759461491202,668.29,0.00018044,2]
[388882107,1759461491935,609.25,0.00018044,2]
[388882108,1759461492192,500.0,0.00018045,2]
[388882109,1759461497121,538.25,0.00018043,2]
[388882110,1759461500428,500.0,0.00018044,2]
[388882111,1759461503445,609.13,0.00018044,2]
[388882112,1759461510643,500.0,0.00018043,2]
[388882113,1759461518267,500.0,0.00018044,2]
[388882114,1759461520135,500.0,0.00018043,2]
[388882115,1759461521712,1984.95,0.00018043,2]
[388882116,1759461523552,500.0,0.00018044,2]
[388882117,1759461527065,-500.0,0.00018045,2]
[388882118,1759461527096,-500.0,0.00018045,2]
[388882119,1759461527124,-500.0,0.00018045,2]
[388882120,1759461527152,-500.0,0.00018045,2]
[388882121,1759461527182,-1921.21,0.00018045,2]
[388882122,1759461527211,-571.94,0.00018045,2]
[388882123,1759461533075,-500.0,0.00018043,2]
[388882124,1759461533101,-500.0,0.00018043,2]
[388882125,1759461533130,-2022.04,0.00018045,2]
[388882126,1759461533157,-500.0,0.00018045,2]
[388882127,1759461533184,-1032.15,0.00018045,2]
[388882128,1759461533211,-213.57,0.00018045,2]
[388882129,1759461537040,-589.02,0.00018043,2]
[388882130,1759461537073,-464.49,0.00018045,2]
[388882131,1759461537103,-1186.46,0.00018045,2]
[388882132,1759461537134,-1012.77,0.00018045,2]
[388882133,1759461537164,-1202.32,0.00018045,2]
[388882134,1759461541069,-1614.46,0.00018045,2]
[388882135,1759461541101,-500.0,0.00018045,2]
[388882136,1759461541134,-524.08,0.00018045,2]
[388882137,1759461541161,-500.0,0.00018045,2]
[388882138,1759461541538,-500.0,0.00018046,2]
[388882139,1759461541580,-500.0,0.00018046,2]
[388882140,1759461541613,-500.0,0.00018046,2]
[388882141,1759461541642,-222.93,0.00018046,2]
[388882142,1759461544472,500.0,0.00018043,2]
[388882143,1759461551172,690.2,0.00018043,2]
[388882144,1759461559383,-300.0,0.00018044,2]
[388882145,1759461559410,-1420.02,0.00018044,2]
[388882146,1759461559439,-500.0,0.00018045,2]
[388882147,1759461559468,-500.0,0.00018045,2]
[388882148,1759461559496,-500.0,0.00018045,2]
[388882149,1759461559525,-1112.51,0.00018045,2]
[388882150,1759461563271,-500.0,0.00018044,2]
[388882151,1759461563302,-1334.95,0.00018045,2]
[388882152,1759461563331,-914.11,0.00018045,2]
[388882153,1759461563361,-1629.99,0.00018045,2]
[388882154,1759461563389,-500.0,0.00018045,2]
[388882155,1759461567334,-723.02,0.00018043,2]
[388882156,1759461567360,-1319.39,0.00018043,2]
[388882157,1759461567385,-500.0,0.00018044,2]
[388882158,1759461567411,-500.0,0.00018044,2]
[388882159,1759461567437,-502.9,0.00018045,2]
[388882160,1759461567462,-500.0,0.00018045,2]
[388882161,1759461567488,-277.07,0.00018046,2]
[388882162,1759461567514,-500.0,0.00018046,2]
[388882163,1759461571374,876.17,0.00018044,2]
[388882164,1759461572422,500.0,0.00018045,2]
[388882165,1759461573507,1816.14,0.00018045,2]
[388882166,1759461574267,1926.05,0.00018045,2]
[388882167,1759461575746,1081.79,0.00018045,2]
[388882168,1759461576061,940.32,0.00018045,2]
[388882169,1759461582191,242.85094592,0.00018044,2]
[388882170,1759461583262,1344.02377841,0.000274,120]
[388882171,1759461583620,1335.91,0.00018043,2]
[388882172,1759461583783,500.0,0.00018045,2]
[388882173,1759461584683,780.77905408,0.00018043,2]
[388882174,1759461584704,683.31094592,0.00018043,2]
[388882175,1759461586186,500.0,0.00018044,2]
[388882176,1759461587396,8816.69905408,0.00018,4]
[388882177,1759461587418,10000.01,0.00018,4]
[388882178,1759461587446,88965.12572874,0.00018,4]
[388882179,1759461593296,2879.18,0.00018043,2]
[388882180,1759461593387,788.19,0.00018044,2]
[388882181,1759461596346,264.2578,0.00028767,120]
[388882182,1759461599606,599.43,0.00018044,2]
[388882183,1759461607109,657.51,0.00018043,2]
[388882184,1759461608172,500.0,0.00018044,2]
[388882185,1759461609000,500.0,0.00018044,2]
[388882186,1759461619855,312.0,0.00017686,2]
[388882187,1759461645995,221.23117835,0.00017945,2]
[388882188,1759461665170,166.544399,0.00025,30]
[388882189,1759461665622,166.544399,0.00025,30]
[388882191,1759461665901,166.544399,0.00025,30]
[388882192,1759461666217,166.544399,0.00025,30]
[388882193,1759461666519,166.544399,0.00025,30]
[388882194,1759461671390,244.67,0.000179,2]
[388882196,1759461684712,273.096446,0.00025,30]
[388882197,1759461684857,273.096446,0.00025,30]
[388882198,1759461685159,273.096446,0.00025,30]